bitfinex/quotes_SOLUSD_20260113
["timestamp","ask_amount","ask_price","bid_price","bid_amount"]
[1768322704018,5.12123414,143.55,143.51,0.69391058]
[1768322704311,111.16490105,143.58,143.53,0.69391058]
[1768322704526,12.087212,143.57,143.53,0.69391058]
[1768322704724,8.61662732,143.56,143.53,0.69391058]
[1768322704912,5.12177154,143.55,143.53,0.69391058]
[1768322705129,3.49485578,143.56,143.53,0.69391058]
[1768322705308,5.12152839,143.55,143.53,0.69391058]
[1768322705607,3.49485578,143.56,143.53,0.69391058]
[1768322705803,5.12250987,143.55,143.53,0.69391058]
[1768322706009,6.96545039,143.57,143.53,0.69391058]
[1768322706212,5.12250854,143.56,143.53,0.69391058]
[1768322706407,5.12250854,143.55,143.53,0.69391058]
[1768322706628,104.299,143.58,143.53,0.69391058]
[1768322706629,3.49485578,143.58,143.54,0.65605526]
[1768322706929,10.45899574,143.6,143.56,0.65605526]
[1768322707227,8.61757569,143.59,143.56,0.65605526]
[1768322707431,3.49485578,143.57,143.54,0.65605526]
[1768322707605,4.17417722,143.55,143.5,0.65605526]
[1768322707806,5.12493924,143.54,143.5,0.65605526]
[1768322708227,12.0917568,143.54,143.5,0.65605526]
[1768322708402,5.12493924,143.53,143.5,0.65605526]
[1768322708605,6.96681756,143.54,143.5,0.65605526]
[1768322708807,5.12739742,143.53,143.5,0.65605526]
[1768322709005,6.96681756,143.54,143.5,0.65605526]
[1768322709006,6.96670105,143.54,143.5,0.65605526]
[1768322709241,5.12739875,143.53,143.5,0.65605526]
[1768322709412,5.12739875,143.52,143.48,0.65605526]
[1768322710208,5.12739875,143.52,143.49,0.65605526]
[1768322711225,5.12739875,143.51,143.49,0.65605526]
[1768322711438,6.96718456,143.53,143.49,0.65605526]
[1768322711626,5.13265139,143.52,143.49,0.65605526]
[1768322711826,5.13265139,143.51,143.49,0.65605526]
[1768322712026,6.96718456,143.53,143.49,0.65605526]
[1768322712227,5.13265406,143.52,143.49,0.65605526]
[1768322712426,5.13265406,143.51,143.49,0.65605526]
[1768322712627,5.13265406,143.5,143.49,0.65605526]
[1768322713050,0.099,143.54,143.49,11.12001385]
[1768322713051,7.06584809,143.54,143.49,11.12001385]
[1768322713221,7.06584809,143.54,143.5,3.49485578]
[1768322713422,7.06584809,143.54,143.49,0.65605526]
[1768322713729,7.06584809,143.54,143.49,4.15091104]
[1768322714319,7.06584809,143.54,143.49,11.11986271]
[1768322714516,104.92426769,143.56,143.51,4.15091104]
[1768322714720,0.72426769,143.56,143.51,4.15091104]
[1768322715338,7.69003937,143.56,143.51,4.15091104]
[1768322717026,7.64279222,143.57,143.53,4.14792091]
[1768322717217,0.67738941,143.57,143.53,4.14792091]
[1768322717417,11.13667057,143.59,143.54,4.14792091]
[1768322717643,0.67738941,143.58,143.54,0.66586589]
[1768322718239,0.67738941,143.58,143.53,3.49485578]
[1768322718444,7.64220285,143.58,143.53,10.46203359]
[1768322719336,0.67738941,143.58,143.53,6.96717781]
[1768322719514,0.67738941,143.58,143.54,3.49485578]
[1768322720352,0.67738941,143.6,143.55,10.56096884]
[1768322720522,0.67738941,143.59,143.55,3.49485578]
[1768322721739,0.67738941,143.55,143.47,3.49485578]
[1768322722040,0.67738941,143.52,143.47,3.49485578]
[1768322722424,0.67738941,143.52,143.47,10.46459619]
[1768322722730,0.67738941,143.52,143.48,3.49485578]
[1768322723241,6.96738246,143.53,143.48,3.49485578]
[1768322723543,7.64477187,143.53,143.48,3.49485578]
[1768322724050,7.64477187,143.53,143.48,10.46425978]
[1768322724341,11.13962765,143.53,143.48,6.969404]
[1768322725044,5.18807616,143.52,143.48,6.969404]
[1768322725221,5.18807616,143.51,143.48,6.969404]
[1768322725424,5.18807616,143.5,143.48,6.969404]
[1768322725622,5.18807616,143.49,143.48,6.969404]
[1768322725929,0.67738941,143.55,143.48,3.49485578]
[1768322726133,0.67738941,143.55,143.5,3.49485578]
[1768322726334,0.67738941,143.54,143.5,12.7]
[1768322726547,4.17224519,143.54,143.5,12.7]
[1768322727123,0.67738941,143.52,143.5,12.7]
[1768322727330,0.67738941,143.52,143.48,12.7]
[1768322727528,0.67738941,143.52,143.48,16.19485578]
[1768322727933,0.67738941,143.54,143.49,10.46398254]
[1768322728137,0.67738941,143.53,143.47,3.49485578]
[1768322728454,0.67738941,143.51,143.46,23.16523081]
[1768322729432,0.67738941,143.51,143.47,23.16478184]
[1768322729953,0.67738941,143.51,143.45,6.97085594]
[1768322729954,0.67738941,143.5,143.45,6.97085594]
[1768322730158,0.64738941,143.5,143.46,12.7]
[1768322730752,0.64738941,143.5,143.46,19.67054362]
[1768322731039,0.64738941,143.5,143.46,23.1653994]
[1768322731245,0.64738941,143.5,143.47,6.9700427]
[1768322731444,3.49485578,143.53,143.47,10.49489848]
[1768322732146,0.67738941,143.52,143.47,7.0000427]
[1768322732344,0.67738941,143.52,143.48,3.52485578]
[1768322732860,0.67738941,143.52,143.47,6.9700427]
[1768322733165,0.67738941,143.52,143.47,10.49489848]
[1768322733645,0.67738941,143.52,143.48,3.49485578]
[1768322734039,11.13913457,143.54,143.48,10.46439268]
[1768322734240,0.67738941,143.53,143.48,10.46439268]
[1768322736659,0.72092894,143.48,143.44,0.2]
[1768322736863,0.69092894,143.48,143.44,16.41485578]
[1768322737364,0.69092894,143.48,143.44,19.89145794]
[1768322737666,0.69092894,143.48,143.44,23.38631372]
[1768322737838,5.0745157,143.47,143.44,23.38631372]
[1768322738040,0.69092894,143.48,143.44,23.38631372]
[1768322738263,10.17496648,143.53,143.47,3.49485578]
[1768322738859,0.72092894,143.51,143.47,3.49485578]
[1768322739074,0.72092894,143.51,143.46,3.49485578]
[1768322739238,0.72092894,143.51,143.47,6.97009827]
[1768322739442,0.72092894,143.51,143.47,10.46495405]
[1768322739857,0.72092894,143.51,143.48,3.49485578]
[1768322740766,0.72092894,143.53,143.49,3.49485578]
[1768322740949,0.72092894,143.53,143.5,3.49485578]
[1768322741756,0.72092894,143.55,143.51,3.49485578]
[1768322741950,6.96553996,143.57,143.52,3.49485578]
[1768322741951,0.72092894,143.56,143.52,3.49485578]
[1768322742143,0.72092894,143.56,143.5,6.96854165]
[1768322742345,0.72092894,143.56,143.52,3.49485578]
[1768322742541,0.72092894,143.56,143.53,3.49485578]
[1768322743266,0.72092894,143.56,143.52,3.49485578]
[1768322743451,0.72092894,143.56,143.52,10.46246912]
[1768322746181,0.72092894,143.56,143.47,34.84877727]
[1768322746476,0.72092894,143.56,143.49,3.49485578]
[1768322746477,0.72092894,143.52,143.49,3.49485578]
[1768322746992,6.96584226,143.56,143.5,3.49485578]
[1768322746993,0.72092894,143.54,143.5,3.49485578]
[1768322747292,0.72092894,143.54,143.5,16.21485578]
[1768322747975,0.72092894,143.54,143.5,23.18334136]
[1768322748182,0.72092894,143.54,143.5,19.68848558]
[1768322748376,0.72092894,143.54,143.5,23.18334136]
[1768322750081,0.72092894,143.54,143.5,19.68848558]
[1768322750283,0.72092894,143.56,143.51,16.21485578]
[1768322750473,5.65546046,143.55,143.52,12.72]
[1768322750673,4.93453152,143.54,143.52,12.72]
[1768322751666,4.93453152,143.54,143.52,19.68761617]
[1768322751874,4.93453152,143.54,143.53,12.7]
[1768322752686,4.93453152,143.54,143.51,6.96795514]
[1768322752887,4.93453152,143.54,143.52,12.7]
[1768322753166,0.72092894,143.54,143.5,10.4633221]
[1768322753364,4.93154256,143.53,143.51,12.7]
[1768322753578,0.72092894,143.54,143.51,19.66815401]
[1768322753796,4.93140524,143.53,143.51,19.66815401]
[1768322753995,0.72092894,143.54,143.51,19.66815401]
[1768322754291,4.93140289,143.53,143.51,19.66815401]
[1768322754472,0.72092894,143.54,143.51,19.66815401]
[1768322755484,0.72092894,143.57,143.53,6.96718456]
[1768322755792,4.93160882,143.56,143.54,12.7]
[1768322755967,4.93160882,143.55,143.54,12.7]
[1768322756389,0.72092894,143.57,143.54,12.7]
[1768322756866,2.23630109,143.58,143.54,12.7]
[1768322757069,0.72092894,143.59,143.54,14.93630109]
[1768322757270,0.72092894,143.59,143.55,30.93630109]
[1768322757796,0.72092894,143.59,143.55,37.90223447]
[1768322758000,6.96350117,143.61,143.55,37.90223447]
[1768322758001,9.9207312,143.61,143.55,37.90223447]
[1768322758167,0.72092894,143.6,143.55,37.90223447]
[1768322758368,0.72092894,143.6,143.55,55.31776912]
[1768322758881,0.72092894,143.61,143.56,2.23630109]
[1768322759086,0.72092894,143.61,143.57,12.7]
[1768322759703,7.68423876,143.61,143.57,12.7]
[1768322759878,7.68423876,143.61,143.55,28.7]
[1768322759879,0.72092894,143.59,143.55,28.7]
[1768322760202,0.72092894,143.59,143.56,12.7]
[1768322760995,9.19961091,143.61,143.56,12.7]
[1768322760996,0.72092894,143.6,143.56,12.7]
[1768322761198,0.72092894,143.6,143.57,6.96521439]
[1768322761410,0.72092894,143.63,143.58,2.23630109]
[1768322761586,0.72092894,143.61,143.59,12.7]
[1768322761791,2.95723003,143.61,143.59,12.7]
[1768322762185,0.72092894,143.61,143.59,12.7]
[1768322765508,7.66604909,143.6,143.59,10.40226079]
[1768322765805,6.9637883,143.6,143.59,10.40226079]
[1768322766210,9.19981446,143.61,143.59,10.40226079]
[1768322766413,9.80157599,143.62,143.59,10.40226079]
[1768322766706,2.83856188,143.62,143.59,10.40226079]
[1768322767081,2.83856188,143.62,143.58,13.36350089]
[1768322767490,2.83856188,143.62,143.58,20.327965]
[1768322768003,2.23630109,143.61,143.58,20.327965]
[1768322768402,2.83856188,143.62,143.58,7.627965]
[1768322768600,4.76035568,143.61,143.58,20.327965]
[1768322768798,2.83856188,143.62,143.58,20.327965]
[1768322768988,4.75956767,143.61,143.58,20.327965]
[1768322769185,2.23630109,143.63,143.59,0.66350089]
[1768322769390,2.23630109,143.65,143.6,0.66350089]
[1768322769584,4.75968418,143.64,143.62,0.66350089]
[1768322769807,2.23630109,143.66,143.62,0.66350089]
[1768322770005,0.59722818,143.72,143.66,0.66350089]
[1768322770307,0.59722818,143.72,143.67,15.59980198]
[1768322770514,0.59722818,143.72,143.67,13.36350089]
[1768322770809,0.59722818,143.72,143.69,2.23630109]
[1768322771321,0.59722818,143.72,143.68,21.89610141]
[1768322771906,7.55527319,143.72,143.68,19.65980032]
[1768322772122,0.2,143.74,143.7,2.89980198]
[1768322772896,7.15717876,143.74,143.71,0.8]
[1768322773087,7.15717876,143.74,143.71,1.37e-06]
[1768322773602,0.2,143.74,143.72,1.37e-06]
[1768322773781,13.6360393,143.77,143.72,1.37e-06]
[1768322773782,0.198,143.77,143.73,1.37e-06]
[1768322773980,0.198,143.77,143.71,12.7]
[1768322774393,0.198,143.77,143.74,1.37e-06]
[1768322775013,0.198,143.77,143.73,2.23630109]
[1768322775211,0.70226079,143.74,143.71,2.23630109]
[1768322775417,0.70226079,143.74,143.72,2.23630109]
[1768322776100,0.70226079,143.74,143.7,15.60845342]
[1768322776298,0.70226079,143.74,143.71,2.23630109]
[1768322777322,0.70448174,143.76,143.72,9.86642725]
[1768322778016,0.70448174,143.76,143.7,30.03725222]
[1768322778017,0.70448174,143.75,143.7,13.31215235]
[1768322778205,0.70448174,143.75,143.71,9.8667619]
[1768322778798,0.70448174,143.75,143.71,7.63046081]
[1768322779003,0.70448174,143.77,143.72,2.90845342]
[1768322779205,0.70448174,143.77,143.73,0.67215233]
[1768322779521,9.89634864,143.77,143.73,0.67215233]
[1768322779931,138.96363062,143.83,143.73,6.95717515]
[1768322779932,0.70448174,143.83,143.73,6.95717515]
[1768322780135,0.70448174,143.83,143.79,2.23630109]
[1768322780337,0.70448174,143.83,143.79,12.7]
[1768322780804,2.94078283,143.83,143.79,13.37215233]
[1768322781004,9.89349436,143.83,143.79,13.37215233]
[1768322781429,7.65719327,143.83,143.79,13.37215233]
[1768322781930,7.65719327,143.83,143.79,0.67215233]
[1768322782105,7.65719327,143.83,143.78,24.95826981]
[1768322782300,6.00787472,143.79,143.76,12.7]
[1768322782514,0.70448174,143.78,143.75,12.7]
[1768322782713,6.00787472,143.8,143.75,12.7]
[1768322783231,5.30339298,143.79,143.75,13.37215233]
[1768322783610,5.30339298,143.79,143.75,20.32857602]
[1768322784833,12.96228109,143.8,143.75,20.32857602]
[1768322785203,0.70448174,143.8,143.75,20.32857602]
[1768322785408,0.70448174,143.8,143.76,0.67215233]
[1768322785623,6.00787472,143.8,143.76,7.56813759]
[1768322786224,6.00787472,143.78,143.77,28.7]
[1768322786434,0.70448174,143.78,143.77,28.7]
[1768322786731,5.30339298,143.79,143.77,28.7]
[1768322787532,12.25804772,143.79,143.77,28.7]
[1768322788014,6.00787472,143.78,143.73,0.67215233]
[1768322788206,5.30339298,143.76,143.73,13.37215233]
[1768322788710,5.30339298,143.76,143.73,12.7]
[1768322789322,5.30339298,143.74,143.7,0.67215233]
[1768322789526,5.30339298,143.74,143.71,6.95840722]
[1768322789724,5.30339298,143.74,143.71,7.63055955]
[1768322790133,5.30339298,143.74,143.71,0.67215233]
[1768322791005,5.30339298,143.72,143.68,7.63195302]
[1768322791434,7.45594973,143.75,143.7,0.67215233]
[1768322791634,5.30339298,143.74,143.7,0.67215233]
[1768322792431,5.30339298,143.73,143.7,0.67215233]
[1768322792634,5.30339298,143.71,143.66,0.67215233]
[1768322792934,5.30339298,143.68,143.66,0.67215233]
[1768322793135,5.30339298,143.69,143.66,7.63299011]
[1768322793336,5.30339298,143.67,143.66,0.67215233]
[1768322793632,5.30339298,143.68,143.66,0.67215233]
[1768322793839,5.30339298,143.7,143.66,7.63295223]
[1768322794341,5.30339298,143.7,143.67,0.67215233]
[1768322795220,7.05648973,143.73,143.67,0.67215233]
[1768322795641,5.30339298,143.7,143.67,0.67215233]
[1768322795839,5.30339298,143.7,143.67,7.63226486]
[1768322796420,37.25110219,143.75,143.68,0.68354217]
[1768322796840,5.30339298,143.73,143.68,0.68354217]
[1768322797742,6.95752792,143.73,143.7,0.68354217]
[1768322797926,12.2609209,143.73,143.7,0.68354217]
[1768322799619,5.30339298,143.73,143.7,0.68354217]
[1768322799941,5.30339298,143.74,143.71,0.68354217]
[1768322800139,6.95623369,143.76,143.72,0.68354217]
[1768322800441,6.95623369,143.76,143.72,5.98693515]
[1768322800739,6.95566742,143.77,143.73,0.68354217]
[1768322800935,6.95566742,143.77,143.73,0.62354219]
[1768322801452,12.2590604,143.77,143.73,0.62354219]
[1768322802014,24.95816837,143.79,143.73,12.2607917]
[1768322802318,22.68770176,143.81,143.75,5.30339298]
[1768322802720,5.30339298,143.8,143.73,24.35112306]
[1768322803026,12.80869672,143.79,143.74,0.68354217]
[1768322803420,12.80869672,143.79,143.74,7.64053234]
[1768322803739,6.95430107,143.8,143.76,0.68354217]
[1768322803927,7.51310932,143.81,143.76,0.68354217]
[1768322804235,12.25673144,143.82,143.77,0.68354217]
[1768322804436,29.6395711,143.82,143.77,0.68354217]
[1768322804633,5.30339298,143.81,143.77,0.68354217]
[1768322805231,24.43517812,143.82,143.77,0.68354217]
[1768322805440,5.30339298,143.81,143.77,0.68354217]
[1768322805837,24.43517812,143.82,143.77,0.68354217]
[1768322806043,5.30339298,143.81,143.77,0.68354217]
[1768322807042,5.30339298,143.81,143.75,0.68354217]
[1768322807043,0.55030999,143.79,143.75,0.68354217]
[1768322807918,6.95507024,143.78,143.75,0.68354217]
[1768322808934,12.25846322,143.78,143.73,12.94401578]
[1768322809135,12.36648896,143.78,143.73,5.98693515]
[1768322809338,12.36648896,143.78,143.73,12.94440798]
[1768322809541,12.36648896,143.78,143.74,0.68354217]
[1768322812045,6.95507024,143.78,143.75,0.68354217]
[1768322812351,12.25812478,143.79,143.75,0.68354217]
[1768322812549,4.69404897,143.78,143.75,0.68354217]
[1768322812730,12.25812478,143.79,143.75,0.68354217]
[1768322813048,6.95425702,143.8,143.76,0.68354217]
[1768322813252,4.70798768,143.79,143.77,0.68354217]
[1768322813424,6.95381363,143.81,143.77,0.62354218]
[1768322813624,6.95381363,143.81,143.77,12.25879484]
[1768322814051,6.9532632,143.82,143.77,6.95540186]
[1768322814356,4.71234223,143.81,143.77,12.25879484]
[1768322814542,4.71234223,143.8,143.77,12.25879484]
[1768322814849,4.71234223,143.8,143.77,6.95540186]
[1768322815154,6.9532632,143.82,143.77,12.25879484]
[1768322815359,4.71275966,143.81,143.78,0.68354217]
[1768322815557,4.71275966,143.8,143.78,16.25817311]
[1768322815855,6.9532632,143.82,143.78,0.68354217]
[1768322816157,4.71275735,143.81,143.78,0.68354217]
[1768322816363,4.71275735,143.8,143.78,0.68354217]
[1768322816650,16.19187872,143.83,143.78,7.63851257]
[1768322816852,4.71316274,143.82,143.81,0.68354217]
[1768322817155,4.71316274,143.82,143.8,8.61958569]
[1768322817456,4.71177213,143.81,143.78,8.61958569]
[1768322817625,16.27337621,143.84,143.78,15.57464521]
[1768322817829,4.72709342,143.83,143.79,8.61958569]
[1768322818052,4.72709342,143.82,143.79,8.61958569]
[1768322818251,7.65379052,143.84,143.79,8.61958569]
[1768322818450,4.72608051,143.83,143.79,8.61958569]
[1768322818630,4.72608051,143.82,143.79,8.61958569]
[1768322818831,4.72608051,143.81,143.78,15.57464521]
[1768322819055,0.69454139,143.83,143.78,16.25818738]
[1768322819252,4.72627959,143.82,143.78,16.25818738]
[1768322819460,0.69454139,143.83,143.78,16.25818738]
[1768322819753,11.67899304,143.82,143.78,7.63860169]
[1768322820061,4.72575211,143.81,143.78,16.25818738]
[1768322820237,6.95324324,143.82,143.78,16.25818738]
[1768322820435,4.7254492,143.81,143.78,16.25818738]
[1768322820638,16.26697542,143.83,143.78,16.25818738]
[1768322820853,4.72544688,143.82,143.78,16.25818738]
[1768322821037,4.72544688,143.81,143.78,16.25818738]
[1768322821237,0.70134339,143.82,143.78,0.68354217]
[1768322821562,4.7250217,143.81,143.78,0.68354217]
[1768322821730,16.2743205,143.82,143.78,0.68354217]
[1768322821935,4.7250244,143.81,143.78,0.68354217]
[1768322822160,7.65473481,143.82,143.78,0.68354217]
[1768322822361,4.72463645,143.81,143.78,0.68354217]
[1768322822553,7.65473481,143.82,143.78,0.68354217]
[1768322822872,0.69467607,143.79,143.74,0.68354217]
[1768322823031,0.69467607,143.79,143.72,17.39429338]
[1768322823032,0.69467607,143.79,143.75,9.30312786]
[1768322823237,9.32099779,143.81,143.76,0.68354217]
[1768322823453,4.72565702,143.8,143.76,0.68354217]
[1768322823636,9.32099779,143.81,143.76,0.68354217]
[1768322823843,11.67975531,143.8,143.76,7.63957553]
[1768322824055,4.72605053,143.79,143.75,15.57604223]
[1768322824360,0.70134339,143.79,143.75,16.2595844]
[1768322824866,6.95410292,143.8,143.76,7.66171745]
[1768322825071,6.95410292,143.8,143.76,9.32554861]
[1768322825239,4.73869691,143.79,143.76,0.70596292]
[1768322825546,9.28773358,143.79,143.74,9.32554861]
[1768322825740,6.95507024,143.78,143.75,0.70596292]
[1768322827472,0.66814789,143.75,143.71,0.70596292]
[1768322827768,8.61958569,143.76,143.71,0.70596292]
[1768322827945,4.79698261,143.75,143.71,0.70596292]
[1768322828271,6.95507024,143.78,143.73,9.32554861]
[1768322828445,4.79615322,143.77,143.74,0.70596292]
[1768322828640,6.95507024,143.78,143.74,9.32554861]
[1768322829049,6.95507024,143.78,143.75,0.70596292]
[1768322830042,4.7957829,143.77,143.75,0.70596292]
[1768322830264,6.95507024,143.78,143.75,0.70596292]
[1768322830452,4.79567469,143.77,143.75,0.70596292]
[1768322830760,15.57465593,143.78,143.75,0.70596292]
[1768322830958,4.79607609,143.77,143.75,0.70596292]
[1768322831155,15.57465593,143.78,143.73,16.28282513]
[1768322831373,8.61958569,143.74,143.71,0.70596292]
[1768322832159,9.28773358,143.75,143.71,0.70596292]
[1768322832364,4.79778017,143.74,143.71,0.70596292]
[1768322832562,9.28773358,143.75,143.71,0.70596292]
[1768322832868,4.79778017,143.74,143.71,0.70596292]
[1768322833066,6.9570057,143.74,143.71,0.70596292]
[1768322833663,15.57659139,143.74,143.71,0.70596292]
[1768322834971,16.24473928,143.74,143.7,6.95892831]
[1768322835268,16.24473928,143.74,143.69,7.66518897]
[1768322835469,16.24473928,143.74,143.7,0.70596292]
[1768322836263,14.11444171,143.73,143.68,7.67990949]
[1768322836466,8.61958569,143.72,143.68,7.67990949]
[1768322836773,9.31703287,143.73,143.69,0.72018019]
[1768322836958,9.31703287,143.73,143.69,7.6794687]
[1768322837158,16.27468244,143.73,143.69,7.6794687]
[1768322837376,7.65509675,143.73,143.69,7.6794687]
[1768322837546,7.65509675,143.73,143.69,0.72018019]
[1768322837746,16.27468244,143.73,143.69,0.72018019]
[1768322838271,4.7993186,143.72,143.69,0.72018019]
[1768322838449,16.27468244,143.73,143.69,0.72018019]
[1768322838645,18.08780308,143.76,143.71,0.72018019]
[1768322838884,4.7989919,143.75,143.71,0.72018019]
[1768322839066,4.7989919,143.74,143.71,0.72018019]
[1768322839269,15.57618681,143.75,143.71,7.67849871]
[1768322839476,4.7994363,143.74,143.72,0.72018019]
[1768322839676,10.44019914,143.77,143.72,0.72018019]
[1768322839968,8.98082223,143.76,143.72,0.72018019]
[1768322840166,8.28337505,143.75,143.72,0.72018019]
[1768322840467,3.48453403,143.75,143.72,0.72018019]
[1768322840651,3.48453403,143.75,143.71,7.67849871]
[1768322840846,4.80013199,143.74,143.71,0.72018019]
[1768322841044,3.48453403,143.74,143.71,0.72018019]
[1768322841664,3.48453403,143.74,143.7,6.9587493]
[1768322841862,4.80212491,143.73,143.7,7.67892949]
[1768322842050,11.13904678,143.74,143.7,7.67892949]
[1768322842246,4.18198121,143.74,143.7,7.67892949]
[1768322842858,11.13910299,143.74,143.7,7.67892949]
[1768322843354,4.80279059,143.73,143.7,7.67892949]
[1768322843558,11.13910299,143.74,143.7,7.67892949]
[1768322843880,8.98540589,143.73,143.68,0.72018019]
[1768322844081,8.98580373,143.72,143.68,7.6800275]
[1768322844259,4.18198121,143.72,143.68,7.67991253]
[1768322845185,4.80377433,143.71,143.68,7.67991253]
[1768322845394,4.18198121,143.72,143.68,7.67991253]
[1768322845599,4.80369364,143.71,143.68,7.67991253]
[1768322845875,3.48453403,143.72,143.69,0.72018019]
[1768322846182,4.18198121,143.73,143.69,0.72018019]
[1768322846779,11.13920988,143.74,143.69,0.72018019]
[1768322846979,8.98448033,143.73,143.69,0.72018019]
[1768322847169,4.80249912,143.72,143.69,0.72018019]
[1768322847494,8.28703315,143.72,143.69,7.67957776]
[1768322847662,3.48453403,143.72,143.69,7.67957776]
[1768322848380,11.14017747,143.72,143.67,13.42018019]
[1768322848558,11.14017747,143.72,143.68,7.67977777]
[1768322848759,10.44273029,143.72,143.69,0.72018019]
[1768322849070,3.48453403,143.72,143.69,0.72018019]
[1768322849474,3.48453403,143.72,143.69,7.67954894]
[1768322850075,3.48453403,143.73,143.7,0.72018019]
[1768322851381,11.13914618,143.74,143.7,7.67890129]
[1768322851582,3.48453403,143.82,143.7,7.67890129]
[1768322851583,0.69744718,143.8,143.73,3.48453403]
[1768322851770,4.7970758,143.79,143.75,4.20471422]
[1768322852087,3.48453403,143.81,143.76,0.72018019]
[1768322852288,4.79688403,143.8,143.76,4.20471422]
[1768322852492,4.18198121,143.81,143.76,4.20471422]
[1768322852789,5.49380108,143.8,143.77,3.48453403]
[1768322852989,4.7963539,143.79,143.77,3.48453403]
[1768322853492,11.75099844,143.79,143.76,4.20471422]
[1768322853672,6.95464454,143.79,143.76,4.20471422]
[1768322853996,6.95464454,143.79,143.76,0.72018019]
[1768322854173,6.95464454,143.79,143.77,4.20471422]
[1768322854697,5.49419744,143.78,143.72,12.7]
[1768322854871,0.69744718,143.78,143.74,3.48453403]
[1768322855068,24.34111091,143.79,143.75,3.48453403]
[1768322855287,24.34111091,143.79,143.72,12.7]
[1768322855288,4.78375269,143.78,143.76,3.48453403]
[1768322855588,6.95464454,143.79,143.76,3.48453403]
[1768322855783,4.78364251,143.78,143.76,3.48453403]
[1768322855980,6.95464454,143.79,143.76,3.48453403]
[1768322856176,6.95412793,143.8,143.77,3.48453403]
[1768322856380,6.95412793,143.8,143.78,3.48453403]
[1768322856778,6.95412793,143.8,143.76,3.48453403]
[1768322857490,6.95412793,143.8,143.76,4.17226626]
[1768322857870,7.64542358,143.8,143.76,4.17226626]
[1768322858695,7.64542358,143.8,143.77,3.48453403]
[1768322858882,7.64542358,143.8,143.76,4.17226626]
[1768322859085,4.74038924,143.79,143.76,4.17226626]
[1768322859288,7.64542358,143.8,143.76,4.17226626]
[1768322859591,4.74082882,143.79,143.77,0.68773223]
[1768322859787,10.43866196,143.8,143.77,0.68773223]
[1768322859990,4.75610073,143.79,143.77,0.68773223]
[1768322860190,10.43866196,143.8,143.77,0.68773223]
[1768322860387,0.69129565,143.77,143.71,0.68773223]
[1768322860585,0.69129565,143.77,143.69,0.68773223]
[1768322860586,3.48453403,143.73,143.69,0.68773223]
[1768322860791,3.48453403,143.72,143.69,0.68773223]
[1768322861188,6.95754079,143.73,143.69,0.68773223]
[1768322861412,3.48453403,143.72,143.69,0.68773223]
[1768322861776,10.44207482,143.73,143.7,0.68773223]
[1768322862100,10.4120748,143.73,143.7,0.68773223]
[1768322862299,3.48453403,143.74,143.7,0.68773223]
[1768322862487,0.69129565,143.75,143.69,11.13141874]
[1768322862488,10.44105576,143.75,143.69,11.13141874]
[1768322862684,4.76161008,143.74,143.69,11.13141874]
[1768322862884,4.17582968,143.74,143.69,4.17226626]
[1768322863087,0.69129565,143.74,143.69,11.13161788]
[1768322863294,0.69129565,143.74,143.69,16.27637234]
[1768322863585,9.32058414,143.74,143.69,16.27637234]
[1768322863994,15.5863849,143.74,143.7,0.68773223]
[1768322864912,4.77000483,143.73,143.7,0.68773223]
[1768322865094,7.64839206,143.74,143.7,0.68773223]
[1768322865294,11.72772329,143.73,143.7,0.68773223]
[1768322865484,0.69129565,143.75,143.7,0.68773223]
[1768322865683,5.46162714,143.74,143.7,0.68773223]
[1768322865889,0.69129565,143.74,143.7,0.68773223]
[1768322866099,4.76959995,143.73,143.7,0.68773223]
[1768322866416,9.32058414,143.74,143.7,0.68773223]
[1768322866619,4.771076,143.73,143.7,0.68773223]
[1768322866790,9.32058414,143.74,143.7,0.68773223]
[1768322866992,4.77107832,143.73,143.7,0.68773223]
[1768322867211,9.32058414,143.74,143.7,0.68773223]
[1768322867386,4.77251588,143.73,143.7,0.68773223]
[1768322867586,7.6486019,143.74,143.7,0.68773223]
[1768322867915,4.77251356,143.73,143.7,0.68773223]
[1768322868098,16.27789039,143.74,143.7,0.68773223]
[1768322868299,4.77312562,143.73,143.7,0.68773223]
[1768322868595,16.27789039,143.74,143.7,0.68773223]
[1768322868801,4.77312562,143.73,143.7,0.68773223]
[1768322869001,7.6486019,143.74,143.7,0.68773223]
[1768322869204,4.77334413,143.73,143.7,0.68773223]
[1768322869404,7.6486019,143.74,143.7,0.68773223]
[1768322869613,4.77381003,143.73,143.69,16.27612535]
[1768322869809,7.6486019,143.74,143.69,16.27612535]
[1768322870013,4.77387158,143.73,143.69,16.27612535]
[1768322870317,0.69129565,143.73,143.69,0.68773223]
[1768322870518,0.69129565,143.73,143.69,9.31702072]
[1768322871024,5.46619226,143.72,143.68,15.58911652]
[1768322871197,24.34982051,143.74,143.69,7.64707901]
[1768322871198,25.04111616,143.74,143.69,7.64707901]
[1768322871392,54.13709646,143.78,143.71,0.68773223]
[1768322871393,4.77592648,143.73,143.71,0.68773223]
[1768322871628,0.69129565,143.75,143.71,0.68773223]
[1768322871796,5.46649228,143.74,143.7,8.62928849]
[1768322871999,12.42406484,143.73,143.69,16.2763675]
[1768322872331,7.64886821,143.73,143.69,16.2763675]
[1768322872497,0.69129565,143.72,143.69,15.58863527]